fUSD/lending_fUSD_20240214
["ID","MTS","AMOUNT","RATE_DAILY","PERIOD"]
[313993354,1707918687819,-577.93,0.00037534,2]
[313993355,1707918687834,-500.0,0.00037534,2]
[313993356,1707918687847,-832.53,0.00037534,2]
[313993357,1707918687862,-500.0,0.00037534,2]
[313993358,1707918687877,-731.74,0.00037534,2]
[313993359,1707918687893,-939.6,0.00037534,2]
[313993360,1707918687907,-618.79,0.00037534,2]
[313993361,1707918687923,-702.08,0.00037534,2]
[313993362,1707918687939,-500.0,0.00037534,2]
[313993363,1707918687952,-500.0,0.00037534,2]
[313993364,1707918687967,-500.0,0.00037534,2]
[313993365,1707918687984,-1511.48,0.00037534,2]
[313993366,1707918688002,-500.0,0.00037534,2]
[313993367,1707918688019,-538.53369559,0.00037534,2]
[313993368,1707918688032,-1556.11,0.00037534,2]
[313993369,1707918688045,-525.66,0.00037534,2]
[313993370,1707918688060,-500.0,0.00037534,2]
[313993371,1707918688078,-500.0,0.00037534,2]
[313993372,1707918688091,-500.0,0.00037534,2]
[313993373,1707918688105,-635.32,0.00037534,2]
[313993374,1707918688119,-730.57,0.00037534,2]
[313993375,1707918688133,-694.15,0.00037534,2]
[313993376,1707918688147,-500.0,0.00037534,2]
[313993377,1707918688160,-500.0,0.00037534,2]
[313993378,1707918688173,-500.0,0.00037534,2]
[313993379,1707918688187,-512.15,0.00037534,2]
[313993380,1707918688200,-4300.1,0.00037534,2]
[313993381,1707918688214,-500.0,0.00037534,2]
[313993382,1707918688227,-553.65,0.00037534,2]
[313993383,1707918688241,-500.0,0.00037534,2]
[313993384,1707918688254,-1367.49,0.00037534,2]
[313993385,1707918688270,-797.14,0.00037534,2]
[313993386,1707918688284,-1107.84,0.00037534,2]
[313993387,1707918688297,-2703.32,0.00037534,2]
[313993388,1707918688310,-500.0,0.00037534,2]
[313993389,1707918688323,-1628.57,0.00037534,2]
[313993390,1707918688336,-500.0,0.00037534,2]
[313993391,1707918688350,-500.0,0.00037534,2]
[313993392,1707918688364,-500.0,0.00037534,2]
[313993393,1707918688377,-1290.42,0.00037534,2]
[313993394,1707918688391,-500.0,0.00037534,2]
[313993395,1707918688404,-572.56,0.00037534,2]
[313993396,1707918688418,-608.22080349,0.00037534,2]
[313993397,1707918688434,-2835.77,0.00037534,2]
[313993398,1707918688448,-1120.47,0.00037534,2]
[313993399,1707918688461,-500.0,0.00037534,2]
[313993400,1707918688474,-500.0,0.00037534,2]
[313993401,1707918688487,-1443.05,0.00037534,2]
[313993402,1707918688501,-517.14,0.00037534,2]
[313993403,1707918688515,-500.0,0.00037534,2]
[313993404,1707918688528,-4292.73,0.00037534,2]
[313993405,1707918688542,-786.93,0.00037534,2]
[313993406,1707918688555,-1168.95,0.00037534,2]
[313993407,1707918688568,-500.0,0.00037534,2]
[313993408,1707918688581,-1720.24,0.00037534,2]
[313993409,1707918688593,-562.77487058,0.00037534,2]
[313993410,1707918688606,-775.06,0.00037534,2]
[313993411,1707918688619,-1074.02,0.00037534,2]
[313993412,1707918688633,-500.0,0.00037534,2]
[313993413,1707918688648,-500.0,0.00037534,2]
[313993414,1707918688660,-500.0,0.00037534,2]
[313993415,1707918688674,-1078.87,0.00037534,2]
[313993416,1707918688686,-5058.48,0.00037534,2]
[313993417,1707918688698,-500.0,0.00037534,2]
[313993418,1707918688712,-766.12,0.00037534,2]
[313993419,1707918688725,-500.0,0.00037534,2]
[313993420,1707918688737,-621.18964102,0.00037534,2]
[313993421,1707918688750,-500.0,0.00037534,2]
[313993422,1707918688762,-12071.62,0.00037534,2]
[313993423,1707918688775,-662.79,0.00037534,2]
[313993424,1707918688788,-1066.1,0.00037534,2]
[313993425,1707918688801,-374.6772666,0.00037534,2]
[313993426,1707918688814,-500.0,0.00037534,2]
[313993427,1707918688827,-500.0,0.00037534,2]
[313993428,1707918688840,-500.0,0.00037534,2]
[313993429,1707918688853,-500.0,0.00037534,2]
[313993430,1707918688866,-2904.57,0.00037534,2]
[313993431,1707918688878,-500.0,0.00037534,2]
[313993432,1707918688892,-500.0,0.00037534,2]
[313993433,1707918688904,-500.0,0.00037534,2]
[313993434,1707918688916,-500.0,0.00037534,2]
[313993435,1707918688928,-782.3,0.00037534,2]
[313993436,1707918688940,-500.0,0.00037534,2]
[313993437,1707918688953,-500.0,0.00037534,2]
[313993438,1707918688966,-1683.81,0.00037534,2]
[313993439,1707918688979,-1071.21,0.00037534,2]
[313993440,1707918688992,-502.98,0.00037534,2]
[313993441,1707918689005,-500.0,0.00037534,2]
[313993442,1707918689018,-500.0,0.00037534,2]
[313993443,1707918689030,-4434.9,0.00037534,2]
[313993444,1707918689044,-501.61,0.00037534,2]
[313993445,1707918689056,-1703.61,0.00037534,2]
[313993446,1707918689069,-500.0,0.00037534,2]
[313993447,1707918689086,-500.0,0.00037534,2]
[313993448,1707918689099,-1473.33,0.00037534,2]
[313993449,1707918689113,-4728.84,0.00037534,2]
[313993450,1707918689127,-5888.22,0.00037534,2]
[313993451,1707918689139,-520.65,0.00037534,2]
[313993452,1707918689151,-500.0,0.00037534,2]
[313993453,1707918689164,-758.6,0.00037534,2]
[313993454,1707918689177,-500.0,0.00037534,2]
[313993455,1707918689190,-2346.52,0.00037534,2]
[313993456,1707918689204,-597.23,0.00037534,2]
[313993457,1707918689216,-812.43,0.00037534,2]
[313993458,1707918689230,-1129.6,0.00037534,2]
[313993459,1707918689244,-26483.9,0.00037534,2]
[313993460,1707918689257,-500.0,0.00037534,2]
[313993461,1707918689271,-500.0,0.00037534,2]
[313993462,1707918689284,-6954.93,0.00037534,2]
[313993463,1707918689297,-15190.55,0.00037534,2]
[313993464,1707918689310,-524.03875703,0.00037534,2]
[313993465,1707918689323,-599.5,0.00037534,2]
[313993466,1707918689336,-500.0,0.00037534,2]
[313993467,1707918689350,-500.0,0.00037534,2]
[313993468,1707918689363,-3242.2,0.00037534,2]
[313993469,1707918689376,-500.0,0.00037534,2]
[313993470,1707918689389,-500.0,0.00037534,2]
[313993471,1707918689402,-500.0,0.00037534,2]
[313993472,1707918689416,-500.0,0.00037534,2]
[313993473,1707918689429,-559.19,0.00037534,2]
[313993474,1707918689442,-974.31,0.00037534,2]
[313993475,1707918689455,-500.0,0.00037534,2]
[313993476,1707918689468,-500.0,0.00037534,2]
[313993477,1707918689481,-2133.28,0.00037534,2]
[313993478,1707918689494,-749.2,0.00037534,2]
[313993479,1707918689507,-500.0,0.00037534,2]
[313993480,1707918689521,-500.0,0.00037534,2]
[313993481,1707918689535,-612.19,0.00037534,2]
[313993482,1707918689548,-3984.48,0.00037534,2]
[313993483,1707918689561,-3434.86,0.00037534,2]
[313993484,1707918689575,-1036.88,0.00037534,2]
[313993485,1707918689589,-2229.52,0.00037534,2]
[313993486,1707918689602,-667.56,0.00037534,2]
[313993487,1707918689615,-500.0,0.00037534,2]
[313993488,1707918689629,-830.29,0.00037534,2]
[313993489,1707918689644,-804.93,0.00037534,2]
[313993490,1707918689659,-879.15,0.00037534,2]
[313993491,1707918689672,-500.0,0.00037534,2]
[313993492,1707918689685,-1523.47,0.00037534,2]
[313993493,1707918689698,-500.0,0.00037534,2]
[313993494,1707918689711,-500.0,0.00037534,2]
[313993495,1707918689725,-500.0,0.00037534,2]
[313993496,1707918689739,-857.92,0.00037534,2]
[313993497,1707918689752,-1000.0,0.00037534,7]
[313993498,1707918689767,-2172.7,0.00037534,2]
[313993499,1707918689780,-1039.51,0.00037534,2]
[313993500,1707918689792,-500.0,0.00037534,2]
[313993501,1707918689805,-665.95,0.00037534,2]
[313993502,1707918689818,-659.78,0.00037534,2]
[313993503,1707918689831,-882.28,0.00037534,2]
[313993504,1707918689845,-915.81,0.00037534,2]
[313993505,1707918689859,-500.0,0.00037534,2]
[313993506,1707918689872,-3477.6,0.00037534,2]
[313993507,1707918689885,-522.05,0.00037534,2]
[313993508,1707918689898,-1097.28,0.00037534,2]
[313993509,1707918689912,-628.97,0.00037534,2]
[313993510,1707918689925,-1305.65,0.00037534,2]
[313993511,1707918689940,-1091.63,0.00037534,2]
[313993512,1707918689953,-6315.2,0.00037534,2]
[313993513,1707918689967,-168.36405168,0.00037534,2]
[313993514,1707918689981,-500.0,0.00037534,2]
[313993515,1707918689995,-532.14,0.00037534,2]
[313993516,1707918690007,-605.23,0.00037534,2]
[313993517,1707918690023,-500.0,0.00037534,2]
[313993518,1707918690036,-500.0,0.00037534,2]
[313993519,1707918690049,-500.0,0.00037534,2]
[313993520,1707918690061,-500.0,0.00037534,2]
[313993521,1707918690442,-564.70173842,0.00037534,2]
[313993522,1707918690453,-575.46,0.00037534,2]
[313993523,1707918690463,-500.0,0.00037534,2]
[313993524,1707918690474,-500.0,0.00037534,2]
[313993525,1707918690484,-500.0,0.00037534,2]
[313993526,1707918690494,-1990.75,0.00037534,2]
[313993527,1707918690504,-500.0,0.00037534,2]
[313993528,1707918690517,-616.34,0.00037534,2]
[313993529,1707918690528,-3516.5,0.00037534,2]
[313993530,1707918690539,-512.62985811,0.00037534,2]
[313993531,1707918690548,-910.68,0.00037534,2]
[313993532,1707918690559,-1503.66,0.00037534,2]
[313993533,1707918690569,-500.0,0.00037534,2]
[313993534,1707918690579,-280.73937837,0.00037534,2]
[313993535,1707918690590,-500.0,0.00037534,2]
[313993536,1707918690600,-1353.58,0.00037534,2]
[313993537,1707918690611,-642.25,0.00037534,2]
[313993538,1707918690621,-14206.3,0.00037534,2]
[313993539,1707918690635,-1094.31,0.00037534,2]
[313993540,1707918690644,-500.0,0.00037534,2]
[313993541,1707918690654,-504.39,0.00037534,2]
[313993542,1707918690663,-4735.51,0.00037534,2]
[313993543,1707918690674,-15808.04,0.00037534,2]
[313993544,1707918690684,-590.2,0.00037534,2]
[313993545,1707918690694,-521.77,0.00037534,2]
[313993546,1707918690704,-500.0,0.00037534,2]
[313993547,1707918690715,-609.6,0.00037534,2]
[313993548,1707918690725,-500.0,0.00037534,2]
[313993549,1707918690735,-1215.11,0.00037534,2]
[313993550,1707918690744,-1135.44,0.00037534,2]
[313993551,1707918690754,-952.28,0.00037534,2]
[313993552,1707918690766,-500.0,0.00037534,2]
[313993553,1707918690776,-1276.66,0.00037534,2]
[313993554,1707918690786,-574.28,0.00037534,2]
[313993555,1707918690795,-4016.09,0.00037534,2]
[313993556,1707918690806,-1923.51,0.00037534,2]
[313993557,1707918690816,-773.79,0.00037534,2]
[313993558,1707918690826,-1158.37,0.00037534,2]
[313993559,1707918690836,-500.0,0.00037534,2]
[313993560,1707918690846,-1689.83,0.00037534,2]
[313993561,1707918690856,-575.3,0.00037534,2]
[313993562,1707918690866,-4706.8,0.00037534,2]
[313993563,1707918690875,-747.49,0.00037534,2]
[313993564,1707918690886,-1197.0,0.00037534,2]
[313993565,1707918690895,-958.67,0.00037534,2]
[313993566,1707918690905,-881.68,0.00037534,2]
[313993567,1707918690915,-500.0,0.00037534,2]
[313993568,1707918690925,-500.0,0.00037534,2]
[313993569,1707918690935,-507.34941617,0.00037534,2]
[313993570,1707918690945,-860.88,0.00037534,2]
[313993571,1707918690956,-1164.93,0.00037534,2]
[313993572,1707918690966,-1951.36,0.00037534,2]
[313993573,1707918690977,-1362.66,0.00037534,2]
[313993574,1707918690987,-500.0,0.00037534,2]
[313993575,1707918690998,-5008.04,0.00037534,2]
[313993576,1707918691008,-500.0,0.00037534,2]
[313993577,1707918691020,-500.0,0.00037534,2]
[313993578,1707918691031,-501.51482671,0.00037534,2]
[313993579,1707918691041,-500.0,0.00037534,2]
[313993580,1707918691051,-445.0,0.00037534,2]
[313993581,1707918691062,-4529.93,0.00037534,2]
[313993582,1707918691072,-500.0,0.00037534,2]
[313993583,1707918691082,-3699.47,0.00037534,2]
[313993584,1707918691093,-500.0,0.00037534,2]
[313993585,1707918691104,-12952.9,0.00037534,2]
[313993586,1707918691115,-828.54,0.00037534,2]
[313993587,1707918691126,-500.0,0.00037534,2]
[313993588,1707918691137,-1251.9,0.00037534,2]
[313993589,1707918691147,-3126.29,0.00037534,2]
[313993590,1707918691158,-1437.69,0.00037534,2]
[313993591,1707918691168,-1152.44,0.00037534,2]
[313993592,1707918691178,-1237.6,0.00037534,2]
[313993593,1707918691188,-822.05,0.00037534,2]
[313993594,1707918691198,-511.51671473,0.00037534,2]
[313993595,1707918691207,-500.0,0.00037534,2]
[313993596,1707918691217,-1678.52,0.00037534,2]
[313993597,1707918691227,-1826.37,0.00037534,2]
[313993598,1707918691237,-797.67,0.00037534,2]
[313993599,1707918691247,-582.74,0.00037534,2]
[313993600,1707918691257,-2133.72,0.00037534,2]
[313993601,1707918691267,-1064.91,0.00037534,2]
[313993602,1707918691276,-1749.77,0.00037534,2]
[313993603,1707918691285,-1043.31,0.00037534,2]
[313993604,1707918691295,-500.0,0.00037534,2]
[313993605,1707918691305,-967.45,0.00037534,2]
[313993606,1707918691315,-1310.86,0.00037534,2]
[313993607,1707918691325,-500.0,0.00037534,2]
[313993608,1707918691335,-500.0,0.00037534,2]
[313993609,1707918691344,-2819.82,0.00037534,2]
[313993610,1707918691355,-2597.17,0.00037534,2]
[313993611,1707918691364,-500.0,0.00037534,2]
[313993612,1707918691374,-720.93,0.00037534,2]
[313993613,1707918691384,-500.0,0.00037534,2]
[313993614,1707918691394,-809.82,0.00037534,2]
[313993615,1707918691404,-1115.91,0.00037534,2]
[313993616,1707918691413,-1189.12,0.00037534,2]
[313993617,1707918691423,-605.51,0.00037534,2]
[313993618,1707918691432,-628.13418696,0.00037534,2]
[313993619,1707918691442,-1440.13,0.00037534,2]
[313993620,1707918691452,-513.76,0.00037534,2]
[313993621,1707918691462,-631.29,0.00037534,2]
[313993622,1707918691472,-1306.22,0.00037534,2]
[313993623,1707918691481,-872.68,0.00037534,2]
[313993624,1707918691492,-2146.65,0.00037534,2]
[313993625,1707918691501,-500.0,0.00037534,2]
[313993626,1707918691512,-549.7,0.00037534,2]
[313993627,1707918691521,-5114.22,0.00037534,2]
[313993628,1707918691531,-1222.64,0.00037534,2]
[313993629,1707918691541,-4990.81,0.00037534,2]
[313993630,1707918691552,-500.0,0.00037534,2]
[313993631,1707918691562,-1285.38,0.00037534,2]
[313993632,1707918691571,-1231.04,0.00037534,2]
[313993633,1707918691581,-509.78,0.00037534,2]
[313993634,1707918691591,-742.8,0.00037534,2]
[313993635,1707918691601,-3732.73,0.00037534,2]
[313993636,1707918691610,-500.0,0.00037534,2]
[313993637,1707918691619,-514.43,0.00037534,2]
[313993638,1707918691632,-2453.8,0.00037534,2]
[313993639,1707918691642,-500.0,0.00037534,2]
[313993640,1707918691654,-500.0,0.00037534,2]
[313993641,1707918691663,-500.0,0.00037534,2]
[313993642,1707918691675,-500.0,0.00037534,2]
[313993643,1707918691685,-274.37836583,0.00037534,2]
[313993644,1707918691695,-5821.53,0.00037534,2]
[313993645,1707918691705,-2011.37,0.00037534,2]
[313993646,1707918691715,-500.0,0.00037534,2]
[313993647,1707918691726,-1144.7,0.00037534,2]
[313993648,1707918691736,-585.65883339,0.00037534,2]
[313993649,1707918691745,-500.0,0.00037534,2]
[313993650,1707918691755,-500.0,0.00037534,2]
[313993651,1707918691766,-519.38,0.00037534,2]
[313993652,1707918691776,-500.0,0.00037534,2]
[313993653,1707918691786,-500.0,0.00037534,2]
[313993654,1707918691796,-3702.41,0.00037534,2]
[313993655,1707918691806,-880.95,0.00037534,2]
[313993656,1707918691815,-534.9,0.00037534,2]
[313993657,1707918691825,-8636.35,0.00037534,2]
[313993658,1707918691835,-500.0,0.00037534,2]
[313993659,1707918691844,-1238.83,0.00037534,2]
[313993660,1707918691854,-1361.33,0.00037534,2]
[313993661,1707918691863,-7611.65,0.00037534,2]
[313993662,1707918691873,-702.73,0.00037534,2]
[313993663,1707918691883,-379.93093151,0.00037534,2]
[313993664,1707918691893,-1501.21,0.00037534,2]
[313993665,1707918691903,-500.0,0.00037534,2]
[313993666,1707918691914,-697.0,0.00037534,2]
[313993667,1707918691924,-500.0,0.00037534,2]
[313993668,1707918691935,-616.5,0.00037534,2]
[313993669,1707918691945,-872.65,0.00037534,2]
[313993670,1707918691955,-1537.45,0.00037534,2]
[313993671,1707918691965,-500.0,0.00037534,2]
[313993672,1707918691976,-960.14,0.00037534,2]
[313993673,1707918691987,-500.0,0.00037534,2]
[313993674,1707918691998,-500.0,0.00037534,2]
[313993675,1707918692008,-500.0,0.00037534,2]
[313993676,1707918692020,-500.0,0.00037534,2]
[313993677,1707918692031,-1141.7,0.00037534,2]
[313993678,1707918692041,-604.39,0.00037534,2]
[313993679,1707918692052,-500.0,0.00037534,2]
[313993680,1707918692062,-5355.99,0.00037534,2]
[313993681,1707918692073,-16645.44,0.00037534,2]
[313993682,1707918692083,-1144.07,0.00037534,2]
[313993683,1707918692093,-1107.57,0.00037534,2]
[313993684,1707918692102,-500.0,0.00037534,2]
[313993685,1707918692111,-1882.22,0.00037534,2]
[313993686,1707918692121,-500.0,0.00037534,2]
[313993687,1707918692131,-500.0,0.00037534,2]
[313993688,1707918692141,-7326.55,0.00037534,2]
[313993689,1707918692151,-500.0,0.00037534,2]
[313993690,1707918692160,-1302.63,0.00037534,2]
[313993691,1707918692171,-1550.23,0.00037534,2]
[313993692,1707918692181,-500.0,0.00037534,2]
[313993693,1707918692191,-588.3,0.00037534,2]
[313993694,1707918692201,-974.43,0.00037534,2]
[313993695,1707918692212,-500.0,0.00037534,2]
[313993696,1707918692222,-941.93,0.00037534,2]
[313993697,1707918692233,-540.08076437,0.00037534,2]
[313993698,1707918692244,-3756.61,0.00037534,2]
[313993699,1707918692255,-500.0,0.00037534,2]
[313993700,1707918692267,-500.0,0.00037534,2]
[313993701,1707918692277,-1129.76,0.00037534,2]
[313993702,1707918692286,-500.0,0.00037534,2]
[313993703,1707918692297,-500.0,0.00037534,2]
[313993704,1707918692308,-266.48105844,0.00037534,2]
[313993705,1707918692318,-507.96736025,0.00037534,3]
[313993706,1707918692327,-1956.7,0.00037534,2]
[313993707,1707918692337,-1423.16,0.00037534,2]
[313993708,1707918692347,-4240.65,0.00037534,2]
[313993709,1707918692358,-1226.81,0.00037534,2]
[313993710,1707918692368,-761.11,0.00037534,2]
[313993711,1707918692378,-856.41,0.00037534,2]
[313993712,1707918692387,-1193.41,0.00037534,2]
[313993713,1707918692397,-3015.16,0.00037534,2]
[313993714,1707918692407,-1629.1,0.00037534,2]
[313993715,1707918692417,-5323.65,0.00037534,2]
[313993716,1707918692426,-500.0,0.00037534,2]
[313993717,1707918692436,-209.7950911,0.00037534,2]
[313993718,1707918692446,-1989.93,0.00037534,2]
[313993719,1707918692456,-500.0,0.00037534,2]
[313993720,1707918692466,-774.14,0.00037534,2]
[313993721,1707918692475,-500.0,0.00037534,2]
[313993722,1707918692485,-200.0,0.00037536,3]
[313993723,1707918692495,-800.0,0.00037536,5]
[313993724,1707918692505,-500.0,0.00037536,10]
[313993725,1707918692515,-150.0,0.00037551,2]
[313993726,1707918692525,-326.22,0.00037572,2]
[313993727,1707918692535,-1878.06584765,0.00037578,10]
[313993728,1707918692545,-333.65176242,0.00037583,2]
[313993729,1707918692555,-500.0,0.00037583,2]
[313993730,1707918692565,-500.0,0.00037583,2]
[313993731,1707918692575,-500.0,0.00037583,2]
[313993732,1707918692584,-774.52,0.00037583,2]
[313993733,1707918692594,-500.0,0.00037583,2]
[313993734,1707918692603,-500.0,0.00037583,2]
[313993735,1707918692613,-500.0,0.00037583,2]
[313993736,1707918692622,-500.0,0.00037583,2]
[313993737,1707918692632,-500.0,0.00037583,2]
[313993738,1707918692643,-500.0,0.00037583,2]
[313993739,1707918692653,-500.0,0.00037583,2]
[313993740,1707918692662,-500.0,0.00037583,2]
[313993741,1707918692674,-500.0,0.00037583,2]
[313993742,1707918692684,-500.0,0.00037583,2]
[313993743,1707918692694,-500.0,0.00037583,2]
[313993744,1707918692704,-500.0,0.00037583,2]
[313993745,1707918692715,-558.54386461,0.00037583,2]
[313993746,1707918692725,-500.0,0.00037583,2]
[313993747,1707918692735,-839.71,0.00037583,2]
[313993748,1707918692746,-500.0,0.00037583,2]
[313993749,1707918692756,-500.0,0.00037583,2]
[313993750,1707918692766,-500.0,0.00037583,2]
[313993751,1707918692776,-500.0,0.00037583,2]
[313993752,1707918692786,-500.0,0.00037583,2]
[313993753,1707918692796,-500.0,0.00037583,2]
[313993754,1707918692808,-500.0,0.00037583,2]
[313993755,1707918692818,-559.31130842,0.00037583,2]
[313993756,1707918692828,-500.0,0.00037583,2]
[313993757,1707918692838,-500.0,0.00037583,2]
[313993758,1707918692848,-500.0,0.00037583,2]
[313993759,1707918692859,-500.0,0.00037583,2]
[313993760,1707918692869,-539.74781041,0.00037583,2]
[313993761,1707918692879,-500.0,0.00037583,2]
[313993762,1707918692889,-500.0,0.00037583,2]
[313993763,1707918692900,-500.0,0.00037583,2]
[313993764,1707918692910,-500.0,0.00037583,2]
[313993765,1707918692920,-500.0,0.00037583,2]
[313993766,1707918692931,-500.0,0.00037583,2]
[313993767,1707918692941,-509.23,0.00037583,2]
[313993768,1707918692951,-500.0,0.00037583,2]
[313993769,1707918692962,-596.65,0.00037583,2]
[313993770,1707918692972,-500.0,0.00037583,2]
[313993771,1707918692982,-500.0,0.00037583,2]
[313993772,1707918692992,-500.0,0.00037583,2]
[313993773,1707918693002,-355.17540234,0.00037583,2]
[313993774,1707918693013,-500.0,0.00037583,2]
[313993775,1707918693025,-500.0,0.00037583,2]
[313993776,1707918693035,-500.0,0.00037583,2]
[313993777,1707918693045,-646.68,0.00037583,2]
[313993778,1707918693055,-711.13,0.00037583,2]
[313993779,1707918693065,-500.0,0.00037583,2]
[313993780,1707918693075,-500.0,0.00037583,2]
[313993781,1707918693086,-500.0,0.00037583,2]
[313993782,1707918693096,-541.38630044,0.00037583,2]
[313993783,1707918693107,-500.0,0.00037583,2]
[313993784,1707918693118,-500.0,0.00037583,2]
[313993785,1707918693129,-500.0,0.00037583,2]
[313993786,1707918693139,-500.0,0.00037583,2]
[313993787,1707918693148,-500.0,0.00037583,2]
[313993788,1707918693158,-500.0,0.00037583,2]
[313993789,1707918693168,-500.0,0.00037583,2]
[313993790,1707918693178,-579.59,0.00037583,2]
[313993791,1707918693188,-500.0,0.00037583,2]
[313993792,1707918693198,-771.59,0.00037583,2]
[313993793,1707918693207,-500.0,0.00037583,2]
[313993794,1707918693217,-500.0,0.00037583,2]
[313993795,1707918693227,-500.0,0.00037583,2]
[313993796,1707918693237,-500.0,0.00037583,2]
[313993797,1707918693247,-500.0,0.00037583,2]
[313993798,1707918693257,-510.67302295,0.00037583,2]
[313993799,1707918693267,-500.0,0.00037583,2]
[313993800,1707918693277,-845.86,0.00037583,2]
[313993801,1707918693287,-773.25,0.00037583,2]
[313993802,1707918693297,-500.0,0.00037583,2]
[313993803,1707918693307,-500.0,0.00037583,2]
[313993804,1707918693316,-543.39,0.00037583,2]
[313993805,1707918693326,-500.0,0.00037583,2]
[313993806,1707918693336,-500.0,0.00037583,2]
[313993807,1707918693345,-200.0,0.00037596,3]
[313993808,1707918693356,-800.0,0.00037596,5]
[313993809,1707918693366,-500.0,0.00037596,10]
[313993810,1707918693374,-150.0,0.000376,27]
[313993811,1707918693385,-155.82,0.000376,3]
[313993812,1707918693394,-477.99,0.00037653,2]
[313993813,1707918693405,-150.0,0.00037671,2]
[313993814,1707918693415,-44634.0,0.00037672,20]
[313993815,1707918693425,-3020.0,0.00037672,20]
[313993816,1707918693436,-622.0,0.00037672,20]
[313993817,1707918693446,-304.0,0.00037672,20]
[313993818,1707918693456,-205.08169809,0.00037676,10]
[313993819,1707918693467,-58764.36,0.000377,3]
[313993820,1707918693477,-1878.06584765,0.00037713,11]
[313993821,1707918693487,-150.0,0.00037716,2]
[313993822,1707918693498,-150.0,0.00037722,2]
[313993823,1707918693509,-150.0,0.00037725,2]
[313993824,1707918693520,-150.0,0.00037739,2]
[313993825,1707918693530,-150.0,0.00037751,2]
[313993826,1707918693540,-300.0,0.0003777,2]
[313993827,1707918693550,-2170.08742529,0.0003777,4]
[313993828,1707918693561,-241.39301355,0.0003777,4]
[313993829,1707918693571,-373.14406517,0.0003777,4]
[313993830,1707918693581,-476.37887876,0.0003777,4]
[313993831,1707918693592,-525.21369596,0.0003777,4]
[313993832,1707918693602,-363.26835941,0.0003777,4]
[313993833,1707918693612,-370.13877668,0.0003777,4]
[313993834,1707918693623,-4646.48697645,0.0003777,4]
[313993835,1707918693633,-917.73887216,0.0003777,4]
[313993836,1707918693645,-317.27211821,0.0003777,4]
[313993837,1707918693655,-291.12180822,0.0003777,4]
[313993838,1707918693667,-291.99941808,0.0003777,4]
[313993839,1707918693677,-6587.72083116,0.0003777,4]
[313993840,1707918693686,-156.79751866,0.0003777,4]
[313993841,1707918693696,-190.07272171,0.0003777,4]
[313993842,1707918693899,-630.55738904,0.0003777,4]
[313993843,1707918693911,-211.20606042,0.0003777,4]
[313993844,1707918693921,-287.30832033,0.0003777,4]
[313993845,1707918693932,-163.25073479,0.0003777,4]
[313993846,1707918693942,-250.42933287,0.0003777,4]
[313993847,1707918693952,-282.15685369,0.0003777,4]
[313993848,1707918693962,-994.72595111,0.00037771,4]
[313993849,1707918693972,-13783.75975547,0.00037771,4]
[313993850,1707918693982,-252.9215324,0.00037771,4]
[313993851,1707918693992,-1404.85920199,0.00037771,2]
[313993852,1707918694003,-3955.88494142,0.00037772,4]
[313993853,1707918694012,-500.0,0.00037775,120]